bitfinex/quotes_BTCUSD_20250123
["timestamp","ask_amount","ask_price","bid_price","bid_amount"]
[1737595312307,0.36626183,103130.0,103120.0,1.84427746]
[1737595315413,0.36626183,103130.0,103120.0,1.75790404]
[1737595317394,0.36640423,103130.0,103120.0,1.75790404]
[1737595317933,0.36640423,103130.0,103120.0,1.75310404]
[1737595319992,0.36640423,103130.0,103120.0,1.75790404]
[1737595320750,0.36640423,103130.0,103120.0,1.59518404]
[1737595320952,0.36640423,103130.0,103120.0,1.07294962]
[1737595321180,0.36640423,103130.0,103120.0,1.08086962]
[1737595321378,0.36640423,103130.0,103120.0,1.23086962]
[1737595321584,0.36640423,103130.0,103120.0,0.90636962]
[1737595322017,0.36640423,103130.0,103120.0,0.75536962]
[1737595322726,0.36640423,103130.0,103120.0,0.75336962]
[1737595322928,0.36640423,103130.0,103120.0,0.90536962]
[1737595324390,0.36640423,103130.0,103120.0,0.81236962]
[1737595325431,0.36640423,103130.0,103120.0,0.83130627]
[1737595326036,0.36640423,103130.0,103120.0,0.51236962]
[1737595326262,0.36640423,103130.0,103120.0,0.40391475]
[1737595326458,0.36640423,103130.0,103120.0,0.51236962]
[1737595328286,0.36640423,103130.0,103120.0,0.38651052]
[1737595328287,0.46336823,103130.0,103120.0,0.38651052]
[1737595328491,0.41160423,103130.0,103120.0,0.39443052]
[1737595328909,0.41160423,103130.0,103120.0,0.38651052]
[1737595329138,0.41160423,103130.0,103120.0,0.50288539]
[1737595330187,0.36640423,103130.0,103120.0,0.50288539]
[1737595330390,0.41160423,103130.0,103120.0,0.50288539]
[1737595331979,0.36640423,103130.0,103120.0,0.52588539]
[1737595332178,0.23940423,103130.0,103120.0,0.52588539]
[1737595333451,0.36330423,103130.0,103120.0,0.50288539]
[1737595333866,0.36330423,103130.0,103120.0,0.52588539]
[1737595334956,0.23940423,103130.0,103120.0,0.52588539]
[1737595337820,0.23940423,103130.0,103120.0,0.90568539]
[1737595338642,0.23940423,103130.0,103120.0,0.92504862]
[1737595338930,0.23940423,103130.0,103120.0,0.92935252]
[1737595339712,0.23940423,103130.0,103120.0,0.84955252]
[1737595341107,0.23940423,103130.0,103120.0,0.54955252]
[1737595341301,0.23940423,103130.0,103120.0,0.84955252]
[1737595341659,0.23940423,103130.0,103120.0,0.54955252]
[1737595341857,0.23940423,103130.0,103120.0,0.54163252]
[1737595342048,0.36690423,103130.0,103120.0,0.54955252]
[1737595342251,0.36690423,103130.0,103120.0,0.54163252]
[1737595342470,0.36690423,103130.0,103120.0,0.50718929]
[1737595342676,0.36690423,103130.0,103120.0,0.35718929]
[1737595343073,0.36690423,103130.0,103120.0,0.50718929]
[1737595347597,0.23940423,103130.0,103120.0,0.53018929]
[1737595348718,0.23940423,103130.0,103120.0,0.83018929]
[1737595349340,0.23940423,103130.0,103120.0,0.53018929]
[1737595352319,0.23940423,103130.0,103120.0,0.60858929]
[1737595352939,0.23940423,103130.0,103120.0,0.71704416]
[1737595353150,0.23940423,103130.0,103120.0,0.90858929]
[1737595354356,0.23940423,103130.0,103120.0,0.60858929]
[1737595354556,0.23940423,103130.0,103120.0,0.90858929]
[1737595357354,0.23940423,103130.0,103120.0,1.23308929]
[1737595358799,0.18122523,103130.0,103120.0,1.34634416]
[1737595358940,0.16183223,103130.0,103120.0,1.34634416]
[1737595359779,0.16183223,103130.0,103120.0,1.34434416]
[1737595360159,0.16183223,103130.0,103120.0,1.34634416]
[1737595361820,0.16183223,103130.0,103120.0,1.23788929]
[1737595363770,0.16183223,103130.0,103120.0,1.12376929]
[1737595363969,0.16183223,103130.0,103120.0,1.13168929]
[1737595364967,0.16183223,103130.0,103120.0,1.15468929]
[1737595365518,0.16183223,103130.0,103120.0,0.99676929]
[1737595365729,0.23693223,103130.0,103120.0,0.70468929]
[1737595365940,0.23693223,103130.0,103120.0,0.85468929]
[1737595367752,0.23693223,103130.0,103120.0,0.84676929]
[1737595367965,0.23693223,103130.0,103120.0,0.42173442]
[1737595368166,0.23693223,103130.0,103120.0,0.39873442]
[1737595369528,0.28473223,103130.0,103120.0,0.39873442]
[1737595369730,0.32993223,103130.0,103120.0,0.39081442]
[1737595370122,0.32993223,103130.0,103120.0,0.39873442]
[1737595370337,0.32993223,103130.0,103120.0,0.50718929]
[1737595370948,0.32993223,103130.0,103120.0,0.50518929]
[1737595371345,0.32993223,103130.0,103120.0,0.50718929]
[1737595373628,0.28473223,103130.0,103120.0,0.52226929]
[1737595373778,0.28473223,103130.0,103120.0,0.53018929]
[1737595374388,0.28473223,103130.0,103120.0,0.52226929]
[1737595374579,0.28473223,103130.0,103120.0,0.53018929]
[1737595374781,0.28473223,103130.0,103120.0,1.01049669]
[1737595375698,0.23693223,103130.0,103120.0,1.01049669]
[1737595376077,0.16183223,103130.0,103120.0,1.01049669]
[1737595378043,0.16183223,103130.0,103120.0,1.00257669]
[1737595378251,0.16183223,103130.0,103120.0,1.01049669]
[1737595380492,0.16183223,103130.0,103120.0,1.82425156]
[1737595380493,0.08426023,103130.0,103120.0,1.82425156]
[1737595380726,0.03748771,103130.0,103120.0,1.89885156]
[1737595380926,0.02085771,103130.0,103120.0,1.79039669]
[1737595381127,7.1e-07,103130.0,103120.0,1.79039669]
[1737595381529,7.1e-07,103130.0,103120.0,1.78839669]
[1737595381755,0.25212471,103130.0,103120.0,1.67994182]
[1737595381958,0.23273171,103130.0,103120.0,1.79039669]
[1737595382203,0.21333871,103130.0,103120.0,1.79039669]
[1737595382401,0.15515971,103130.0,103120.0,1.79039669]
[1737595382714,0.13576671,103130.0,103120.0,1.79039669]
[1737595383017,0.13576671,103130.0,103120.0,1.77039669]
[1737595383238,0.13576671,103130.0,103120.0,1.87885156]
[1737595383437,0.13576671,103130.0,103120.0,1.79039669]
[1737595383660,0.13576671,103130.0,103120.0,1.77039669]
[1737595384078,0.13576671,103130.0,103120.0,2.32429669]
[1737595384495,0.11637371,103130.0,103120.0,2.43275156]
[1737595384736,0.03880171,103130.0,103120.0,2.52575156]
[1737595385142,0.01940871,103130.0,103120.0,2.52575156]
[1737595385336,1.571e-05,103130.0,103120.0,2.52575156]
[1737595386633,1.571e-05,103130.0,103120.0,2.52375156]
[1737595386855,1.571e-05,103130.0,103120.0,2.52475156]
[1737595387061,0.00015821,103130.0,103120.0,2.52475156]
[1737595387270,0.25212421,103130.0,103120.0,2.52375156]
[1737595387491,0.25212421,103130.0,103120.0,2.52475156]
[1737595387814,0.0421265,103130.0,103120.0,2.52475156]
[1737595388015,1e-08,103130.0,103120.0,3.50212456]
[1737595388221,1e-08,103130.0,103120.0,2.62475156]
[1737595388367,5.1e-07,103140.0,103130.0,0.377364]
[1737595388563,5.1e-07,103140.0,103130.0,0.65848397]
[1737595388814,0.21331651,103140.0,103130.0,0.66305536]
[1737595389017,0.21331651,103140.0,103130.0,0.77151023]
[1737595390466,0.21331651,103140.0,103130.0,0.77251023]
[1737595391568,0.21331651,103140.0,103130.0,0.77151023]
[1737595392188,0.03879751,103140.0,103130.0,0.77151023]
[1737595392926,0.03879751,103140.0,103130.0,1.62991023]
[1737595393136,0.03879751,103140.0,103130.0,1.63091023]
[1737595394209,0.03879751,103140.0,103130.0,1.64057469]
[1737595394741,0.01269541,103140.0,103130.0,1.64057469]
[1737595394938,4.1e-07,103140.0,103130.0,1.62057469]
[1737595395139,4.1e-07,103140.0,103130.0,1.64057469]
[1737595395631,4.1e-07,103140.0,103130.0,1.65990939]
[1737595395834,0.0807424,103170.0,103160.0,0.173]
[1737595396031,0.08079292,103170.0,103160.0,0.97363794]
[1737595396239,0.08079292,103170.0,103160.0,1.08660366]
[1737595396437,0.37159292,103170.0,103160.0,1.08660366]
[1737595397197,0.37159292,103170.0,103160.0,1.08760366]
[1737595397847,0.37159292,103170.0,103160.0,0.97914879]
[1737595398081,0.37159292,103170.0,103160.0,1.08760366]
[1737595398297,0.29099292,103170.0,103160.0,1.49950366]
[1737595398460,0.13181293,103170.0,103160.0,1.57486281]
[1737595398612,0.13181293,103170.0,103160.0,1.54962924]
[1737595399018,0.13181293,103170.0,103160.0,1.46702924]
[1737595399222,0.0001425,103180.0,103170.0,0.473]
[1737595399421,0.0001425,103180.0,103170.0,0.90418403]
[1737595399666,0.0001425,103180.0,103170.0,0.93880239]
[1737595400108,0.2909125,103180.0,103170.0,0.93880239]
[1737595400432,0.2909125,103180.0,103170.0,1.81790998]
[1737595400636,0.2909125,103180.0,103170.0,1.82723596]
[1737595400754,0.2909125,103180.0,103170.0,1.84794355]
[1737595400969,0.2133765,103180.0,103170.0,1.84894355]
[1737595401169,0.01845824,103180.0,103170.0,1.84894355]
[1737595401797,0.0001426,103190.0,103180.0,0.0248]
[1737595401966,0.0001425,103210.0,103200.0,0.246899]
[1737595402169,0.0001425,103210.0,103200.0,1.12007697]
[1737595402170,0.00064781,103210.0,103200.0,1.12007697]
[1737595402534,0.00064781,103210.0,103200.0,1.12446412]
[1737595402740,0.29132781,103210.0,103200.0,1.12446412]
[1737595403079,0.29132781,103210.0,103200.0,0.97006809]
[1737595403487,0.29132781,103210.0,103200.0,1.07852296]
[1737595404291,0.29132781,103210.0,103200.0,1.07952296]
[1737595405247,0.29123937,103210.0,103200.0,0.97106809]
[1737595405456,0.33643937,103210.0,103200.0,0.97906809]
[1737595406072,0.33643937,103210.0,103200.0,1.08752296]
[1737595406471,0.33643937,103210.0,103200.0,0.97906809]
[1737595406703,0.33643937,103210.0,103200.0,0.97806809]
[1737595407020,0.33643937,103210.0,103200.0,0.97906809]
[1737595408309,0.33643937,103210.0,103200.0,1.08752296]
[1737595408509,0.33643937,103210.0,103200.0,0.98894559]
[1737595408944,0.33643937,103210.0,103200.0,1.00836242]
[1737595409399,0.33643937,103210.0,103200.0,1.11681729]
[1737595409699,0.33643937,103210.0,103200.0,1.00836242]
[1737595411641,0.33643937,103210.0,103200.0,1.11681729]
[1737595411838,0.33643937,103210.0,103200.0,1.00836242]
[1737595412009,0.33643937,103210.0,103200.0,1.11681729]
[1737595412212,0.33643937,103210.0,103200.0,1.00836242]
[1737595412615,0.33643937,103210.0,103200.0,1.00036242]
[1737595412821,0.33643937,103210.0,103200.0,0.98536242]
[1737595412996,0.43332837,103210.0,103200.0,0.96594559]
[1737595413199,0.38812837,103210.0,103200.0,0.47576069]
[1737595414736,0.38812837,103210.0,103200.0,0.95606809]
[1737595415517,0.38812837,103210.0,103200.0,0.47576069]
[1737595417758,0.38812837,103210.0,103200.0,0.95606809]
[1737595419269,0.38797054,103210.0,103200.0,0.95606809]
[1737595421913,0.29108154,103210.0,103200.0,0.95606809]
[1737595422124,0.29108154,103210.0,103200.0,1.087822]
[1737595422327,0.29108154,103210.0,103200.0,0.97936713]
[1737595422957,0.29122394,103210.0,103200.0,0.97936713]
[1737595425897,0.33642394,103210.0,103200.0,0.97936713]
[1737595426101,0.29122394,103210.0,103200.0,0.97936713]
[1737595427135,0.33642394,103210.0,103200.0,0.97936713]
[1737595427544,0.33642394,103210.0,103200.0,1.0095025]
[1737595427723,0.29122394,103210.0,103200.0,1.0095025]
[1737595428309,0.29122394,103210.0,103200.0,0.97936713]
[1737595428512,0.29122394,103210.0,103200.0,1.00951118]
[1737595429766,0.29122394,103210.0,103200.0,1.11796605]
[1737595430603,0.29122394,103210.0,103200.0,1.49396605]
[1737595431442,0.29122394,103210.0,103200.0,1.81846605]
[1737595436940,0.29122394,103210.0,103200.0,1.32748627]
[1737595437298,0.29122394,103210.0,103200.0,1.32848627]
[1737595438352,0.41482394,103210.0,103200.0,0.8209114]
[1737595438555,0.41482394,103210.0,103200.0,0.81652425]
[1737595439098,0.41482394,103210.0,103200.0,0.83952425]
[1737595439885,0.41482394,103210.0,103200.0,0.84919663]
[1737595441277,0.55691294,103210.0,103200.0,0.70986176]
[1737595441539,0.51171294,103210.0,103200.0,0.56774176]
[1737595441711,0.51171294,103210.0,103200.0,0.43281871]
[1737595441915,0.51171294,103210.0,103200.0,0.10831871]
[1737595442118,0.51171294,103210.0,103200.0,0.01885142]
[1737595442457,0.53171294,103210.0,103200.0,0.01885142]
[1737595442681,0.53171294,103210.0,103200.0,0.01097142]
[1737595442859,0.53171294,103210.0,103200.0,0.01885142]
[1737595443268,0.53171294,103210.0,103200.0,0.01785142]
[1737595443601,0.53171294,103210.0,103200.0,0.01885142]
[1737595443896,0.53171294,103210.0,103200.0,0.01785142]
[1737595444093,0.53271294,103210.0,103200.0,0.01785142]
[1737595446206,0.54241585,103210.0,103200.0,0.01785142]
[1737595446628,0.53271294,103210.0,103200.0,0.11519871]
[1737595450552,0.51271294,103210.0,103200.0,0.21209771]
[1737595450763,0.51271294,103210.0,103200.0,0.11519871]
[1737595451599,0.51271294,103210.0,103200.0,0.69240511]
[1737595452755,0.29222394,103210.0,103200.0,1.08231485]
[1737595453162,0.33742394,103210.0,103200.0,1.00401497]
[1737595454800,0.33742394,103210.0,103200.0,1.01387699]
[1737595455566,0.33742394,103210.0,103200.0,0.99087699]
[1737595455689,0.33742394,103210.0,103200.0,0.960722]
[1737595456714,0.33742394,103210.0,103200.0,0.85226713]
[1737595457067,0.51001294,103210.0,103200.0,0.12506073]
[1737595457482,0.50901294,103210.0,103200.0,0.27506073]
[1737595457620,0.50901294,103210.0,103200.0,0.37295973]
[1737595458026,0.50901294,103210.0,103200.0,0.01097142]
[1737595458548,0.63746781,103210.0,103200.0,0.01785142]
[1737595459154,0.52901294,103210.0,103200.0,0.01785142]
[1737595460173,0.52901294,103210.0,103200.0,0.00997142]
[1737595460304,0.52901294,103210.0,103200.0,0.01785142]
[1737595460523,0.53001294,103210.0,103200.0,0.01785142]
[1737595461126,0.63846781,103210.0,103200.0,0.01785142]
[1737595461744,0.53001294,103210.0,103200.0,0.01785142]
[1737595464310,0.53945208,103210.0,103200.0,0.01785142]
[1737595466734,0.48945208,103210.0,103200.0,0.01785142]
[1737595466934,0.53945208,103210.0,103200.0,0.01785142]
[1737595468857,0.55945208,103210.0,103200.0,0.01785142]
[1737595469476,0.53945208,103210.0,103200.0,0.01785142]
[1737595469682,0.55945208,103210.0,103200.0,0.01785142]
[1737595470163,0.53945208,103210.0,103200.0,0.01785142]
[1737595471195,0.64790695,103210.0,103200.0,0.01785142]
[1737595471394,0.53945208,103210.0,103200.0,0.01785142]
[1737595474987,0.55945208,103210.0,103200.0,0.01785142]
[1737595475556,0.64790695,103210.0,103200.0,0.01785142]
[1737595476386,0.64690695,103210.0,103200.0,0.01785142]
[1737595476537,0.64790695,103210.0,103200.0,0.01785142]
[1737595476943,0.64690695,103210.0,103200.0,0.01785142]
[1737595477151,0.65090695,103210.0,103200.0,0.01885142]
[1737595478182,0.65290695,103210.0,103200.0,0.01885142]
[1737595479061,0.54445208,103210.0,103200.0,0.01885142]
[1737595479269,0.56445208,103210.0,103200.0,0.01885142]
[1737595479457,0.54445208,103210.0,103200.0,0.01885142]
[1737595479744,0.49445208,103210.0,103200.0,0.01885142]
[1737595479914,0.51445208,103210.0,103200.0,0.01885142]
[1737595480112,0.56445208,103210.0,103200.0,0.01885142]
[1737595480462,0.51445208,103210.0,103200.0,0.01885142]
[1737595480664,0.49445208,103210.0,103200.0,0.01885142]
[1737595480864,0.51445208,103210.0,103200.0,0.01885142]
[1737595481279,0.49445208,103210.0,103200.0,0.01097142]
[1737595481499,0.49445208,103210.0,103200.0,0.01885142]
[1737595481991,0.49445208,103210.0,103200.0,0.01097142]
[1737595482171,0.49445208,103210.0,103200.0,0.01885142]
[1737595482772,0.49445208,103210.0,103200.0,0.01097142]
[1737595482976,0.49445208,103210.0,103200.0,0.01885142]
[1737595483176,0.44865208,103210.0,103200.0,0.01885142]
[1737595483505,0.44265208,103210.0,103200.0,0.01785142]
[1737595483713,0.36855208,103210.0,103200.0,0.01785142]
[1737595483937,0.26622394,103210.0,103200.0,0.21209771]
[1737595484139,0.36311294,103210.0,103200.0,0.21209771]
[1737595484314,0.36311294,103210.0,103200.0,0.75240511]
[1737595484938,0.36211294,103210.0,103200.0,0.75240511]
[1737595485086,0.26622394,103210.0,103200.0,0.75240511]
[1737595486788,0.26622394,103210.0,103200.0,0.98245998]
[1737595487008,0.26622394,103210.0,103200.0,1.13245998]
[1737595487245,0.36311294,103210.0,103200.0,1.02400511]
[1737595487608,0.31142394,103210.0,103200.0,1.02400511]
[1737595487811,0.26622394,103210.0,103200.0,1.13245998]
[1737595487965,0.31142394,103210.0,103200.0,1.14228926]
[1737595488162,0.26622394,103210.0,103200.0,1.14228926]
[1737595488973,0.40831294,103210.0,103200.0,1.14228926]
[1737595489198,0.36311294,103210.0,103200.0,1.14228926]
[1737595490836,0.26622394,103210.0,103200.0,1.14228926]
[1737595491008,0.31142394,103210.0,103200.0,1.14228926]
[1737595491310,0.31142394,103210.0,103200.0,1.17247739]
[1737595491677,0.31042394,103210.0,103200.0,1.17247739]
[1737595492486,0.26522394,103210.0,103200.0,1.17247739]
[1737595492905,0.26122394,103210.0,103200.0,1.17247739]
[1737595493429,0.26222394,103210.0,103200.0,1.17247739]
[1737595496150,0.26222394,103210.0,103200.0,1.30393226]
[1737595496558,0.26122394,103210.0,103200.0,1.30393226]
[1737595497080,0.26122394,103210.0,103200.0,1.30493226]
[1737595498900,0.26122394,103210.0,103200.0,1.60493226]
[1737595499864,0.26122394,103210.0,103200.0,1.62428429]
[1737595504818,0.26122394,103210.0,103200.0,1.94878429]
[1737595505209,0.26122394,103210.0,103200.0,1.95358429]
[1737595506237,0.26122394,103210.0,103200.0,1.95258429]
[1737595506543,0.26122394,103210.0,103200.0,1.95358429]
[1737595509305,0.30642394,103210.0,103200.0,1.32132942]
[1737595509511,0.30642394,103210.0,103200.0,1.21849739]
[1737595509703,0.30642394,103210.0,103200.0,1.34618926]
[1737595510682,0.30642394,103210.0,103200.0,1.34518926]
[1737595510843,0.30642394,103210.0,103200.0,1.34618926]
[1737595513339,0.30642394,103210.0,103200.0,1.45464413]
[1737595513574,0.30642394,103210.0,103200.0,1.47764413]
[1737595513838,0.30642394,103210.0,103200.0,1.50778584]
[1737595514043,0.30642394,103210.0,103200.0,1.58498584]
[1737595515866,0.26122394,103210.0,103200.0,1.88498584]
[1737595516276,0.26122394,103210.0,103200.0,1.93028584]
[1737595519981,0.26122394,103210.0,103200.0,1.82183097]
[1737595520219,0.26122394,103210.0,103200.0,1.93028584]
[1737595522538,0.26122394,103210.0,103200.0,1.92240584]
[1737595522836,0.26122394,103210.0,103200.0,1.93028584]
[1737595526431,0.26122394,103210.0,103200.0,1.92928584]
[1737595526635,0.26122394,103210.0,103200.0,1.93028584]
[1737595528624,0.26122394,103210.0,103200.0,1.95028584]
[1737595531775,0.24290394,103210.0,103200.0,1.95028584]
[1737595532404,0.0001425,103230.0,103200.0,1.55818684]
[1737595532625,0.00029406,103230.0,103220.0,1.00963703]
[1737595532912,0.29092406,103230.0,103220.0,0.20580216]
[1737595533114,0.29092406,103230.0,103220.0,1.19932443]
[1737595534498,0.29092406,103230.0,103220.0,1.20032443]
[1737595534703,0.11268811,103230.0,103220.0,1.23049198]
[1737595535456,0.11268811,103230.0,103220.0,1.40349198]
[1737595535679,0.01953141,103230.0,103220.0,1.40349198]
[1737595535824,0.01953141,103230.0,103220.0,1.53189198]
[1737595536168,0.01953141,103230.0,103220.0,1.53089198]
[1737595536399,0.01953141,103230.0,103220.0,1.443031]
[1737595536634,0.01953141,103230.0,103220.0,1.444031]
[1737595536820,0.01953141,103230.0,103220.0,1.49135976]
[1737595537217,0.01967391,103230.0,103220.0,1.49235976]
[1737595538843,0.01967391,103230.0,103220.0,1.44921751]
[1737595542776,0.01941033,103230.0,103220.0,1.44921751]
[1737595543332,0.0001425,103240.0,103230.0,0.650271]
[1737595543333,0.00010251,103240.0,103230.0,0.650271]
[1737595543537,0.29070251,103240.0,103230.0,0.88365254]
[1737595544709,0.29070251,103240.0,103230.0,0.88465254]
[1737595548127,0.29070251,103240.0,103230.0,0.68352139]
[1737595548280,0.29070251,103240.0,103230.0,0.80809443]
[1737595549504,0.28535251,103240.0,103230.0,0.80809443]
[1737595550650,0.28535251,103240.0,103230.0,0.98109443]
[1737595551097,0.28535251,103240.0,103230.0,1.05989443]
[1737595551423,0.28535251,103240.0,103230.0,1.06972833]
[1737595552055,0.1324425,103260.0,103250.0,0.45]
[1737595552056,0.0001425,103260.0,103250.0,0.45]
[1737595552258,0.0001425,103260.0,103250.0,1.26320729]
[1737595552537,0.2906825,103260.0,103250.0,1.26320729]
[1737595554330,0.3693825,103260.0,103250.0,0.94020729]
[1737595554460,0.4154825,103260.0,103250.0,0.94020729]
[1737595555198,0.4154825,103260.0,103250.0,0.84335529]
[1737595555405,0.4354825,103260.0,103250.0,0.1149026]
[1737595556034,0.4354825,103260.0,103250.0,0.2649026]
[1737595556440,0.4354825,103260.0,103250.0,0.2570226]
[1737595556680,0.4854825,103260.0,103250.0,0.2649026]
[1737595557073,0.4854825,103260.0,103250.0,0.74521]
[1737595557279,0.4854825,103260.0,103250.0,0.2649026]
[1737595558394,0.4154825,103260.0,103250.0,0.9577626]
[1737595562052,0.4154825,103260.0,103250.0,0.98788085]
[1737595562248,0.4154825,103260.0,103250.0,1.00746656]
[1737595562905,0.2906825,103260.0,103250.0,1.03046656]
[1737595563083,0.18129446,103260.0,103250.0,1.03046656]
[1737595563797,0.15333024,103260.0,103250.0,1.03046656]
[1737595568458,0.10796024,103260.0,103250.0,1.03046656]
[1737595570508,0.01168024,103260.0,103250.0,1.33046656]
[1737595570713,0.0788427,103270.0,103260.0,0.269842]
[1737595570924,0.07899418,103270.0,103260.0,0.51300814]
[1737595571127,0.36950418,103270.0,103260.0,0.51300814]
[1737595577741,0.17872206,103270.0,103260.0,0.51300814]
[1737595577946,0.16937519,103270.0,103260.0,0.81300814]
[1737595578821,0.16937519,103270.0,103260.0,1.00588104]
[1737595579034,0.16937519,103270.0,103260.0,0.81300814]
[1737595580408,0.14277519,103270.0,103260.0,1.00588104]
[1737595580573,0.12207519,103270.0,103260.0,1.00588104]
[1737595581516,0.11598519,103270.0,103260.0,1.00588104]
[1737595582099,0.11598519,103270.0,103260.0,0.81300814]
[1737595582503,0.19608519,103270.0,103260.0,0.81300814]
[1737595582949,0.0462425,103280.0,103260.0,0.71616614]
[1737595583151,0.0462425,103280.0,103270.0,0.45988089]
[1737595583346,0.0462425,103280.0,103270.0,0.97030654]
[1737595583551,0.3367325,103280.0,103270.0,0.97030654]
[1737595585885,0.3367325,103280.0,103270.0,0.98927364]
[1737595586131,0.4168325,103280.0,103270.0,0.98927364]
[1737595587431,0.4168325,103280.0,103270.0,1.00114413]
[1737595589266,0.4168325,103280.0,103270.0,1.00902413]
[1737595594008,0.4168325,103280.0,103270.0,1.00114413]
[1737595594216,0.4168325,103280.0,103270.0,1.00902413]
[1737595600606,0.3367325,103280.0,103270.0,1.00902413]
[1737595605524,0.3367325,103280.0,103270.0,1.00114413]
[1737595605722,0.3367325,103280.0,103270.0,1.00902413]
[1737595607268,0.3367325,103280.0,103270.0,1.00932317]
[1737595607627,0.32373284,103280.0,103270.0,1.03232317]
[1737595610199,0.29049,103280.0,103270.0,1.03232317]
[1737595610400,0.26104999,103280.0,103270.0,1.03232317]
[1737595610849,0.07598363,103280.0,103270.0,1.40802317]
[1737595611049,0.07598363,103280.0,103270.0,2.09154252]
[1737595611252,0.07598363,103280.0,103270.0,2.06501817]
[1737595611429,0.00906761,103280.0,103270.0,2.06501817]
[1737595611629,0.1278,103300.0,103290.0,0.096814]
[1737595611831,0.1278,103300.0,103290.0,1.01481145]
[1737595612201,0.41823,103300.0,103290.0,1.01481145]
[1737595614415,0.41823,103300.0,103290.0,1.03781145]
[1737595614630,0.28580899,103300.0,103290.0,1.43299627]
[1737595614830,0.24562637,103300.0,103290.0,1.65522627]
[1737595615189,0.0011312,103320.0,103310.0,0.246796]
[1737595615398,4.8985288,103330.0,103320.0,0.246786]
[1737595615592,4.68214875,103330.0,103320.0,0.70582504]
[1737595615793,4.97249875,103330.0,103320.0,0.70582504]
[1737595615996,4.88215875,103330.0,103320.0,0.70582504]
[1737595616316,4.84815875,103330.0,103320.0,0.70582504]
[1737595616699,4.84815875,103330.0,103320.0,0.89252504]
[1737595617221,0.0001425,103370.0,103360.0,0.096749]
[1737595617433,0.02029399,103370.0,103360.0,0.68224369]
[1737595617637,0.04689399,103370.0,103360.0,0.79794429]
[1737595617954,0.29052399,103370.0,103360.0,0.94794429]
[1737595618132,0.29052399,103370.0,103360.0,0.97094429]
[1737595618331,0.29252399,103370.0,103360.0,0.97094429]
[1737595618755,0.29352399,103370.0,103360.0,0.97094429]
[1737595618952,0.29152399,103370.0,103360.0,0.97094429]
[1737595619642,0.29052399,103370.0,103360.0,0.97094429]
[1737595620497,0.29252399,103370.0,103360.0,0.97094429]
[1737595620876,0.29052399,103370.0,103360.0,0.97094429]
[1737595624067,0.29052399,103370.0,103360.0,0.94794429]
[1737595625006,0.48392399,103370.0,103360.0,0.72765469]
[1737595625182,0.48392399,103370.0,103360.0,0.73549469]
[1737595625531,0.48392399,103370.0,103360.0,0.72765469]
[1737595625734,0.48392399,103370.0,103360.0,0.73549469]
[1737595625981,0.48392399,103370.0,103360.0,0.85119529]
[1737595626225,0.48392399,103370.0,103360.0,0.73549469]
[1737595628448,0.48392399,103370.0,103360.0,0.72765469]
[1737595628700,0.48392399,103370.0,103360.0,0.94794429]
[1737595628907,0.48392399,103370.0,103360.0,0.94010429]
[1737595629134,0.48392399,103370.0,103360.0,0.94794429]
[1737595629621,0.48392399,103370.0,103360.0,0.73549469]
[1737595629825,0.48392399,103370.0,103360.0,0.85119529]
[1737595629962,0.48392399,103370.0,103360.0,0.94794429]
[1737595630161,0.48392399,103370.0,103360.0,0.85119529]
[1737595631362,0.48392399,103370.0,103360.0,0.73549469]
[1737595632906,2.45412258,103300.0,103290.0,0.49275119]
[1737595633139,2.24939021,103300.0,103290.0,6.54007853]
[1737595633339,2.24939021,103300.0,103290.0,4.35672363]
[1737595633550,2.24939021,103300.0,103290.0,2.89002463]
[1737595633994,2.24939021,103300.0,103290.0,2.95289753]
[1737595634119,1.57498897,103300.0,103290.0,3.07971955]
[1737595634321,1.42141533,103300.0,103290.0,3.09885541]
[1737595634543,1.03638052,103300.0,103290.0,3.59885541]
[1737595634786,0.77034632,103300.0,103290.0,3.61720681]
[1737595635115,0.37926332,103300.0,103290.0,5.39720681]
[1737595635290,0.18922869,103300.0,103290.0,5.38936681]
[1737595635505,0.07396537,103300.0,103290.0,5.39720681]
[1737595635993,0.00696536,103300.0,103290.0,5.37068246]
[1737595636200,3.6e-07,103300.0,103290.0,5.39720681]
[1737595636410,3.6e-07,103300.0,103290.0,4.11938881]
[1737595637022,0.0832,103360.0,103350.0,0.3854586]
[1737595637227,0.0832,103360.0,103350.0,1.10615216]
[1737595637437,0.37346,103360.0,103350.0,1.10615216]
[1737595637636,0.29026,103360.0,103350.0,1.10615216]
[1737595638135,0.24913,103360.0,103350.0,1.10615216]
[1737595638270,0.20997149,103360.0,103350.0,1.48417316]
[1737595639667,0.18272149,103360.0,103350.0,1.60691683]
[1737595640177,0.16148708,103360.0,103350.0,1.60691683]
[1737595640423,0.11234541,103360.0,103350.0,1.60691683]
[1737595641244,0.08562541,103360.0,103350.0,1.6210289]
[1737595641594,0.05949541,103360.0,103350.0,1.6210289]
[1737595642494,0.05949541,103360.0,103350.0,2.5216089]
[1737595642727,0.05949541,103360.0,103350.0,2.4689339]
[1737595642928,0.05949541,103360.0,103350.0,2.3402349]
[1737595643172,0.05949541,103360.0,103350.0,2.1802349]
[1737595643639,0.04493541,103360.0,103350.0,2.19993694]
[1737595643926,0.04507801,103360.0,103350.0,2.19993694]
[1737595644639,0.00930801,103360.0,103350.0,2.19993694]
[1737595645117,0.00930801,103360.0,103350.0,2.10886094]
[1737595646267,1e-08,103360.0,103350.0,2.44720974]
[1737595646402,0.0799024,103380.0,103350.0,2.44720974]
[1737595646403,0.0002024,103380.0,103370.0,0.546739]
[1737595646646,0.2904124,103380.0,103370.0,1.12823683]
[1737595652110,0.3389124,103380.0,103370.0,1.12823683]
[1737595652362,0.4142124,103380.0,103370.0,1.11307683]
[1737595652619,0.4142124,103380.0,103370.0,1.13607683]
[1737595653383,0.4142124,103380.0,103370.0,0.81307683]
[1737595653884,0.4142124,103380.0,103370.0,0.23186996]
[1737595654112,0.4142124,103380.0,103370.0,0.69737623]
[1737595654353,0.4142124,103380.0,103370.0,0.81307683]
[1737595655346,0.4142124,103380.0,103370.0,0.80523683]
[1737595655586,0.4142124,103380.0,103370.0,0.81307683]
[1737595655828,0.4142124,103380.0,103370.0,0.81826116]
[1737595656046,0.4142124,103380.0,103370.0,0.82610116]
[1737595656924,0.3657124,103380.0,103370.0,1.14910116]
[1737595657149,0.2904124,103380.0,103370.0,1.17562551]
[1737595657392,0.2904124,103380.0,103370.0,1.86987016]
[1737595657582,0.16957034,103380.0,103370.0,1.86987016]
[1737595658643,0.16957034,103380.0,103370.0,1.83936916]
[1737595658844,0.15188034,103380.0,103370.0,1.83936916]
[1737595659316,0.15188034,103380.0,103370.0,1.76409216]
[1737595659517,0.15188034,103380.0,103370.0,1.52378616]
[1737595660358,0.15188034,103380.0,103370.0,1.61012428]
[1737595660359,0.11880034,103380.0,103370.0,1.61012428]
[1737595661219,0.132,103400.0,103390.0,0.546721]
[1737595661439,0.42230133,103400.0,103390.0,1.15753316]
[1737595661647,0.42230133,103400.0,103390.0,1.18053316]
[1737595663279,0.42230133,103400.0,103390.0,0.85753316]
[1737595665453,0.49230133,103400.0,103390.0,0.60503511]
[1737595665674,0.49230133,103400.0,103390.0,0.57509144]
[1737595666052,0.49230133,103400.0,103390.0,0.84079204]
[1737595667390,2.40291059,103340.0,103330.0,0.123]
[1737595667577,2.67370659,103340.0,103330.0,5.87154424]